fUST/lending_fUST_20250122
["ID","MTS","AMOUNT","RATE_DAILY","PERIOD"]
[349977687,1737545446428,-940.01995233,0.000214,2]
[349977689,1737545446437,-3000.0,0.0002141,2]
[349977691,1737545446446,-3000.0,0.0002142,2]
[349977693,1737545446455,-1322.72029676,0.00021423,2]
[349977695,1737545446464,-3000.0,0.0002143,2]
[349977697,1737545446473,-3000.0,0.0002144,2]
[349977699,1737545446482,-3000.0,0.0002145,2]
[349977701,1737545446492,-13828.09915465,0.00021458,2]
[349977703,1737545446501,-3000.0,0.0002146,2]
[349977705,1737545446509,-3000.0,0.0002147,2]
[349977707,1737545446518,-3000.0,0.0002148,2]
[349977709,1737545446528,-3000.0,0.0002149,2]
[349977711,1737545446538,-313.84139363,0.00021498,2]
[349977713,1737545446547,-458.12240529,0.00021499,2]
[349977715,1737545446558,-500.0,0.00021499,2]
[349977717,1737545446567,-500.0,0.00021499,2]
[349977719,1737545446576,-1500.0,0.00021499,2]
[349977721,1737545446586,-500.0,0.00021499,2]
[349977723,1737545446595,-500.0,0.00021499,2]
[349977725,1737545446604,-500.0,0.00021499,2]
[349977727,1737545446613,-1500.0,0.00021499,2]
[349977729,1737545446622,-235.25705843,0.00021499,2]
[349977731,1737545446632,-605.05153936,0.00021499,2]
[349977733,1737545446642,-349458.24006764,0.000215,15]
[349978205,1737546340546,162.613457,0.00013973,2]
[349978229,1737546632488,-243.9769039,0.00018012,2]
[349978230,1737546632497,-243.9769039,0.00018194,2]
[349978231,1737546632507,-12.0461922,0.00019999,7]
[349978232,1737546632519,-487.9538078,0.00019999,7]
[349978233,1737546632529,-243.9769039,0.00020132,2]
[349978234,1737546632539,-397.717,0.0002042,2]
[349978235,1737546632548,-500.0,0.00020684,9]
[349978236,1737546632557,-465.24881486,0.00020692,2]
[349978237,1737546632567,-336.6073101,0.00021284,2]
[349978238,1737546632576,-6099.15736546,0.00021304,2]
[349978239,1737546632586,-500.0,0.00021369,11]
[349978240,1737546632595,-156.45,0.00021369,2]
[349978241,1737546632605,-300.0,0.00021399,2]
[349978242,1737546632614,-889.34535207,0.000214,2]
[349978243,1737546632623,-2061.0,0.00021404,2]
[349978244,1737546632632,-545.316,0.00021404,2]
[349978245,1737546632641,-2305.0,0.00021404,2]
[349978246,1737546632651,-2000.0,0.0002146,10]
[349978247,1737546632661,-500.0,0.00021473,2]
[349978248,1737546632674,-151.0,0.00021498,2]
[349978249,1737546632686,-3171.23441447,0.00021499,2]
[349978250,1737546632700,-6671.23441446,0.00021499,2]
[349978251,1737546632714,-238.8334181,0.00021499,2]
[349978252,1737546632723,-500.0,0.00021499,2]
[349978253,1737546632732,-203.95887554,0.00021499,2]
[349978254,1737546632742,-156.1729452,0.00021499,2]
[349978255,1737546632752,-500.0,0.00021499,2]
[349978256,1737546632762,-500.0,0.00021499,2]
[349978257,1737546632772,-500.0,0.00021499,2]
[349978258,1737546632782,-500.0,0.00021499,2]
[349978259,1737546632791,-399.33672914,0.00021499,2]
[349978288,1737546638018,-156.84842839,0.00021498,2]
[349978290,1737546638033,-100.66327086,0.00021499,2]
[349978293,1737546638048,-501.29471991,0.00021499,2]
[349978296,1737546638063,-500.0,0.00021499,2]
[349978298,1737546638077,-500.0,0.00021499,2]
[349978301,1737546638090,-454.89453486,0.00021499,2]
[349978303,1737546638104,-500.0,0.00021499,2]
[349978306,1737546638118,-500.0,0.00021499,2]
[349978308,1737546638132,-311.872,0.00021499,2]
[349978310,1737546638145,-10211.34651273,0.000215,5]
[349978313,1737546638160,-5286.23446889,0.000215,5]
[349978316,1737546638174,-214589.46590118,0.000215,15]
[349978318,1737546638191,-12408.44128469,0.000215,15]
[349978433,1737546640264,-957.6455444,0.000215,15]
[349978587,1737546643102,-1779.17,0.00021499,2]
[349978593,1737546643156,-273.96482284,0.00021499,2]
[349978595,1737546643166,-8498.9496066,0.000215,15]
[349978598,1737546643177,-43236.9124636,0.000215,15]
[349978602,1737546643209,-364.765,0.000215,15]
[349978604,1737546643220,-44322.19385387,0.000215,15]
[349978890,1737546646158,-333.65201116,0.000214,2]
[349978892,1737546646168,-1660.56618967,0.000215,15]
[349979431,1737547365952,162.203899,0.00013973,2]
[349980070,1737547838426,-277.05280662,0.00017546,2]
[349980072,1737547838436,-277.05280662,0.00017723,2]
[349980074,1737547838445,-277.05280662,0.000189,2]
[349980076,1737547838454,-168.009661,0.00019038,2]
[349980078,1737547838463,-250.0,0.00019194,2]
[349980080,1737547838472,-260.3817412,0.00019308,2]
[349980082,1737547838481,-2987.0,0.0002,2]
[349980084,1737547838490,-289.723,0.00020131,2]
[349980086,1737547838499,-500.0,0.00020131,7]
[349980088,1737547838508,-300.0,0.00020131,2]
[349980090,1737547838517,-7819.31313309,0.00020132,2]
[349980112,1737547838711,-17080.68686691,0.00020132,2]
[349980114,1737547838721,-291.9455098,0.000202,2]
[349980116,1737547838731,-191.6547361,0.000203,2]
[349980118,1737547838742,-191.6547361,0.000203,2]
[349980120,1737547838751,-469.56918857,0.0002032,2]
[349980122,1737547838760,-403.851,0.0002042,2]
[349980124,1737547838771,-500.0,0.00020625,2]
[349980126,1737547838781,-291.94550976,0.00020782,2]
[349980128,1737547838790,-500.0,0.00020816,9]
[349980131,1737547838800,-350.74306508,0.00020878,2]
[349980132,1737547838810,-168.3036551,0.00021284,2]
[349980142,1737547838895,-291.94550976,0.00021364,2]
[349980144,1737547838906,-3000.0,0.000214,2]
[349980146,1737547838915,-2061.0,0.00021404,2]
[349980148,1737547838925,-536.0,0.00021404,2]
[349980150,1737547838934,-2305.0,0.00021404,2]
[349980153,1737547838944,-4197.13899796,0.0002141,2]
[349980568,1737547843295,-192.51638195,0.00017371,2]
[349980571,1737547843309,-395.0,0.00020596,2]
[349980573,1737547843324,-1466.00940304,0.0002141,2]
[349980576,1737547843338,-1026.56741142,0.00021499,2]
[349980579,1737547843352,-1026.56741141,0.00021499,2]
[349980581,1737547843366,-500.0,0.00021499,2]
[349980584,1737547843381,-500.0,0.00021499,2]
[349980586,1737547843394,-500.0,0.00021499,2]
[349980590,1737547843408,-500.0,0.00021499,2]
[349980592,1737547843422,-500.0,0.00021499,2]
[349980595,1737547843436,-500.0,0.00021499,2]
[349980597,1737547843450,-500.0,0.00021499,2]
[349980600,1737547843464,-500.0,0.00021499,2]
[349980602,1737547843478,-500.0,0.00021499,2]
[349980605,1737547843493,-500.0,0.00021499,2]
[349980607,1737547843506,-169.28193979,0.00021499,2]
[349980610,1737547843520,-296.98945349,0.00021499,2]
[349980612,1737547843534,-500.0,0.00021499,2]
[349980615,1737547843548,-500.0,0.00021499,2]
[349980617,1737547843561,-500.0,0.00021499,2]
[349980620,1737547843575,-500.0,0.00021499,2]
[349980622,1737547843588,-500.0,0.00021499,2]
[349980625,1737547843603,-500.0,0.00021499,2]
[349980627,1737547843617,-500.0,0.00021499,2]
[349980630,1737547843631,-500.0,0.00021499,2]
[349980632,1737547843645,-159.27767028,0.00021499,2]
[349980634,1737547843656,-5105.67325636,0.000215,5]
[349980636,1737547843666,-1807.25800404,0.000215,5]
[349982997,1737548071249,1090.08,0.00018,30]
[349982999,1737548180552,162.102591,0.00013973,2]
[349983100,1737549032537,-254.2247187,0.00017546,2]
[349983102,1737549032546,-254.2247187,0.00017723,2]
[349983104,1737549032556,-269.44344398,0.000189,2]
[349983106,1737549032565,-37.00707572,0.00019673,2]
[349983121,1737549032698,-2010.13546468,0.00019673,2]
[349983124,1737549032708,-180.674845,0.00019935,2]
[349983127,1737549032717,-160.0,0.0002037,5]
[349983129,1737549032727,-295.13,0.00020417,2]
[349983131,1737549032736,-386.574,0.0002042,2]
[349983133,1737549032745,-263.959,0.00020425,2]
[349983135,1737549032755,-300.0,0.00020425,2]
[349983137,1737549032764,-500.0,0.00020426,7]
[349983140,1737549032774,-24900.0,0.00020426,2]
[349983142,1737549032783,-636.30610776,0.00020427,2]
[349983144,1737549032793,-203.20381264,0.00020525,2]
[349983146,1737549032802,-580.0,0.00020625,2]
[349983148,1737549032811,-203.2038126,0.00021061,2]
[349983150,1737549032821,-1669.06531986,0.000211,2]
[349983152,1737549032831,-360.88816933,0.00021111,9]
[349983154,1737549032840,-474.05730355,0.00021185,2]
[349983156,1737549032850,-4998.25074678,0.000212,2]
[349983158,1737549032859,-168.3036551,0.00021284,2]
[349983160,1737549032868,-1875.66876858,0.000213,2]
[349983560,1737549038923,-192.51638195,0.00021087,2]
[349983561,1737549038934,-3122.5819782,0.000213,2]
[349983562,1737549038943,-229.84513044,0.00021348,2]
[349983563,1737549038980,-306.15486956,0.00021348,2]
[349983564,1737549038990,-534.76298114,0.00021348,2]
[349983566,1737549039038,-1526.23701886,0.00021348,2]
[349983568,1737549039047,-2305.0,0.00021348,2]
[349983570,1737549039057,-395.0,0.00021348,2]
[349983572,1737549039069,-156.45,0.00021348,2]
[349983574,1737549039079,-4998.25074678,0.000214,2]
[349983576,1737549039088,-500.0,0.00021473,2]
[349983578,1737549039097,-630.6871887,0.00021473,2]
[349983580,1737549039108,-500.30736033,0.00021473,2]
[349983582,1737549039117,-500.0,0.00021473,2]
[349983584,1737549039126,-500.0,0.00021473,2]
[349983586,1737549039135,-501.08916729,0.00021473,2]
[349983588,1737549039145,-293.32467426,0.00021499,2]
[349983590,1737549039155,-2552.83662818,0.000215,5]
[349983592,1737549039164,-1739.48823242,0.000215,5]
[349983594,1737549039174,-157854.99276725,0.000215,15]
[349983748,1737549040650,-32050.97187495,0.000215,15]
[349983750,1737549040662,-502.9981526,0.000215,15]
[349985542,1737549105614,161.922486,0.00013973,2]
[349985644,1737550232822,-179.62896265,0.00019206,2]
[349985646,1737550232833,-179.62896265,0.000194,2]
[349985648,1737550232843,-250.0,0.00020145,2]
[349985650,1737550232852,-879.0174282,0.00020223,2]
[349985652,1737550232862,-180.674846,0.00020376,2]
[349985654,1737550232872,-395.205,0.0002042,2]
[349985656,1737550232882,-161.922486,0.00021209,2]
[349985658,1737550232892,-189.44461093,0.00021276,2]
[349985660,1737550232902,-300.0,0.00021347,2]
[349985662,1737550232912,-536.0,0.00021348,2]
[349985664,1737550232922,-2061.0,0.00021348,2]
[349985666,1737550232932,-2305.0,0.00021348,2]
[349985670,1737550232942,-174.29161901,0.000214,2]
[349985673,1737550232952,-158.55992143,0.000214,2]
[349985676,1737550232961,-152.40285945,0.000214,2]
[349985678,1737550232971,-500.0,0.00021473,2]
[349985680,1737550232981,-500.0,0.00021473,2]
[349985682,1737550232990,-269.34086314,0.00021473,2]
[349985684,1737550233000,-405.94385183,0.00021473,2]
[349985686,1737550233009,-382.27562031,0.00021473,2]
[349985688,1737550233019,-500.0,0.00021473,2]
[349985690,1737550233028,-211.167,0.00021473,2]
[349985692,1737550233038,-461.96257009,0.00021499,2]
[349985694,1737550233047,-8656.67400525,0.000215,5]
[349985696,1737550233056,-4780.44355333,0.000215,5]
[349985698,1737550233069,-609.44461093,0.000215,5]
[349985700,1737550233081,-9050.15455066,0.000215,5]
[349985702,1737550233091,-2523.96412433,0.000215,15]
[349985705,1737550233103,-15175.41871222,0.000215,15]
[349985707,1737550233120,-20583.49813599,0.000215,15]
[349985710,1737550233134,-2712.20178878,0.000215,15]
[349986259,1737550238622,-187.07103735,0.00021285,2]
[349986261,1737550238632,-395.0,0.00021348,2]
[349986263,1737550238643,-320.70824735,0.000215,15]
[349986265,1737550238655,-451.138672,0.000215,15]
[349986744,1737550243687,-288.47150204,0.000215,15]
[349987542,1737550331571,162.158002,0.00013973,2]
[349987543,1737550717665,16141.2317207,0.00015,2]
[349987544,1737550717697,20000.0,0.00015,2]
[349987545,1737550717729,20000.0,0.00015,2]
[349987546,1737550717761,20000.0,0.00015,2]
[349987547,1737550717792,20000.0,0.00015,2]
[349987548,1737550717824,20000.0,0.00015,2]
[349987549,1737550717856,20000.0,0.00015,2]
[349987550,1737550717889,20000.0,0.00015,2]
[349987551,1737550717915,165712.6395189,0.00015,2]
[349987552,1737550759140,1000.0,0.00024,120]
[349987561,1737551244321,162.388959,0.00013973,2]
[349987660,1737551432169,-151.0,0.00019503,2]
[349987663,1737551432179,-151.0,0.000197,2]
[349987665,1737551432188,-167.9763155,0.00019936,2]
[349987667,1737551432197,-260.54432738,0.00019999,2]
[349988184,1737551437920,-39.45567262,0.00019999,2]
[349988185,1737551437930,-2145.0,0.0002,3]
[349988186,1737551437940,-2141.0,0.0002,3]
[349988187,1737551437950,-2141.0,0.0002,3]
[349988188,1737551437959,-2141.0,0.0002,3]
[349988189,1737551437969,-2141.0,0.0002,3]
[349988190,1737551437978,-2141.0,0.0002,3]
[349988191,1737551437989,-2048.0,0.0002,3]
[349988192,1737551437998,-2046.0,0.0002,3]
[349988193,1737551438007,-2046.0,0.0002,3]
[349988194,1737551438017,-2046.0,0.0002,3]
[349988195,1737551438027,-223.1566357,0.00020048,2]
[349988196,1737551438037,-2969.0,0.0002008,2]
[349988197,1737551438047,-1117.59574573,0.00020103,2]
[349988198,1737551438060,-23782.40425427,0.00020103,2]
[349988199,1737551438069,-117.45542921,0.00020402,2]
[349988200,1737551438089,-117.08685879,0.00020402,2]
[349988201,1737551438099,-379.027,0.0002042,2]
[349988202,1737551438108,-366.55595949,0.00020625,2]
[349988383,1737551440032,-395.0,0.00020596,2]
[349988386,1737551440041,-133.44404051,0.00020625,2]
[349988388,1737551440051,-151.0,0.000208,3]
[349988390,1737551440060,-1000.0,0.00021,21]
[349988392,1737551440070,-152.40285945,0.00021247,2]
[349988393,1737551440081,-536.0,0.00021348,2]
[349988396,1737551440090,-2061.0,0.00021348,2]
[349988398,1737551440101,-2305.0,0.00021348,2]
[349988400,1737551440111,-163.0,0.00021371,2]
[349988402,1737551440120,-163.0,0.00021371,2]
[349988404,1737551440130,-163.0,0.00021371,2]
[349988406,1737551440139,-163.0,0.00021371,2]
[349988408,1737551440148,-163.0,0.00021371,2]
[349988411,1737551440158,-163.0,0.00021371,2]
[349988414,1737551440167,-163.0,0.00021371,2]
[349988416,1737551440176,-163.0,0.00021371,2]
[349988419,1737551440185,-166.79,0.00021371,2]
[349988421,1737551440194,-220.444,0.00021399,2]
[349988423,1737551440203,-151.0,0.00021436,5]
[349988425,1737551440212,-154.838681,0.00021478,7]
[349988427,1737551440222,-151.0,0.00021493,2]
[349988429,1737551440232,-151.0,0.00021493,2]
[349988431,1737551440241,-151.0,0.00021493,2]
[349988433,1737551440252,-151.0,0.00021493,2]
[349988435,1737551440261,-151.0,0.00021493,2]
[349988437,1737551440271,-151.0,0.00021493,2]
[349988439,1737551440280,-419.08633192,0.00021493,2]
[349988441,1737551440289,-500.0,0.00021493,2]
[349988443,1737551440301,-500.0,0.00021493,2]
[349988445,1737551440310,-500.0,0.00021493,2]
[349988447,1737551440319,-1521.57621485,0.00021493,2]
[349988449,1737551440329,-500.0,0.00021493,2]
[349988451,1737551440338,-500.0,0.00021493,2]
[349988453,1737551440347,-500.0,0.00021493,2]
[349988455,1737551440356,-1521.57621485,0.00021493,2]
[349988457,1737551440366,-500.0,0.00021493,2]
[349988459,1737551440376,-500.0,0.00021493,2]
[349988462,1737551440385,-500.0,0.00021493,2]
[349988464,1737551440394,-500.0,0.00021493,2]
[349988465,1737551440403,-500.0,0.00021493,2]
[349988468,1737551440413,-1521.57621485,0.00021493,2]
[349988470,1737551440422,-500.0,0.00021493,2]
[349988472,1737551440432,-1521.57621485,0.00021493,2]
[349988473,1737551440441,-500.0,0.00021493,2]
[349988475,1737551440450,-500.0,0.00021493,2]
[349988477,1737551440460,-500.0,0.00021493,2]
[349988479,1737551440469,-419.38636622,0.00021493,2]
[349988481,1737551440478,-691.76355698,0.00021493,2]
[349989694,1737552189248,162.616745,0.00013973,2]
[349989784,1737552636032,-218.943791,0.00018509,2]
[349989785,1737552636043,-218.943791,0.00018696,2]
[349989786,1737552636052,-300.0,0.00019999,2]
[349989787,1737552636063,-73.16468761,0.0002,2]
[349989788,1737552636074,-17661.83266,0.0002,2]
[349989827,1737552637987,-168.19961,0.00019935,2]
[349989828,1737552637997,-545.35868975,0.0002,2]
[349989837,1737552641967,-1093.97958461,0.0002,2]
[349989840,1737552641986,-1909.92041539,0.00020095,2]
[349990297,1737553241579,300.0,0.00024,120]
[349990299,1737553275722,162.842845,0.00013973,2]
[349990300,1737553295936,500.0,0.00024,120]
[349990429,1737553832514,-237.80796685,0.00016753,2]
[349990432,1737553832523,-237.80796685,0.00016922,2]
[349990434,1737553832533,-300.0,0.0001785,2]
[349990436,1737553832542,-168.1996102,0.00017851,2]
[349990438,1737553832551,-5895.0579411,0.00017851,2]
[349990440,1737553832560,-15122.38911147,0.00018628,5]
[349990442,1737553832569,-8938.64309111,0.00018628,5]
[349990443,1737553832578,-24900.0,0.00018628,2]
[349990445,1737553832587,-238.20364651,0.00018803,2]
[349990447,1737553832596,-500.0,0.00018903,2]
[349990450,1737553832609,-1401.4652387,0.00019178,11]
[349990452,1737553832618,-167.9763155,0.00019178,2]
[349990455,1737553832627,-420.0,0.0001948,2]
[349990456,1737553832636,-238.20364646,0.00019584,2]
[349990458,1737553832647,-156.92,0.00019785,2]
[349990460,1737553832656,-230.401641,0.00019785,2]
[349990462,1737553832665,-230.401641,0.00019785,2]
[349990465,1737553832674,-151.0,0.00019785,2]
[349990466,1737553832685,-151.0,0.00019785,2]
[349990469,1737553832695,-173.870517,0.00019785,2]
[349990471,1737553832703,-151.0,0.00019785,2]
[349990472,1737553832713,-173.870517,0.00019785,2]
[349990474,1737553832722,-151.0,0.00019785,2]
[349990476,1737553832731,-151.0,0.00019785,2]
[349990479,1737553832741,-151.0,0.00019785,2]
[349990481,1737553832751,-151.0,0.00019785,2]
[349990482,1737553832761,-151.0,0.00019785,2]
[349990484,1737553832770,-151.0,0.00019785,2]
[349990486,1737553832780,-151.0,0.00019785,2]
[349990488,1737553832789,-151.0,0.00019785,2]
[349990490,1737553832798,-151.0,0.00019785,2]
[349990492,1737553832807,-151.0,0.00019785,2]
[349990502,1737553832884,-151.0,0.00019785,2]
[349990504,1737553832893,-151.0,0.00019785,2]
[349990506,1737553832903,-151.0,0.00019785,2]
[349990508,1737553832912,-175.375431,0.00019785,2]
[349990510,1737553832921,-175.375431,0.00019785,2]
[349990512,1737553832931,-151.0,0.00019785,2]
[349990514,1737553832940,-2371.22758295,0.00019785,2]
[349991360,1737553846320,-237.80796685,0.00016419,2]
[349991361,1737553846330,-237.80796685,0.00016585,2]
[349991362,1737553846341,-296.55557905,0.00019785,2]
[349991363,1737553846351,-63.82848725,0.00019863,2]
[349991364,1737553846368,-164.26337715,0.00019863,2]
[349991365,1737553846378,-153.0,0.00019863,2]
[349991366,1737553846387,-153.0,0.00019863,2]
[349991367,1737553846396,-153.0,0.00019863,2]
[349991368,1737553846406,-215.2533166,0.00019863,2]
[349991369,1737553846416,-3432.06607023,0.00019881,2]
[349991370,1737553846425,-175.375431,0.000199,2]
[349991371,1737553846435,-175.375431,0.000199,2]
[349991374,1737553846445,-151.0,0.000199,2]
[349991375,1737553846554,-215.2533166,0.0002,2]
[349991376,1737553846571,-215.2533166,0.0002,2]
[349991377,1737553846581,-153.0,0.0002,2]
[349991378,1737553846590,-153.0,0.0002,2]
[349991379,1737553846600,-151.0,0.00020072,2]
[349991380,1737553846611,-151.0,0.00020072,2]
[349991381,1737553846623,-151.0,0.00020072,2]
[349991382,1737553846634,-151.0,0.00020072,2]
[349991383,1737553846644,-151.938811,0.00020093,2]
[349991384,1737553846657,-151.997268,0.00020093,2]
[349991385,1737553846666,-151.0,0.00020093,2]
[349991386,1737553846676,-167.79372962,0.00020094,2]
[349991392,1737554029253,-237.80796685,0.000189,2]
[349991393,1737554029277,-955.94298488,0.00019291,2]
[349991394,1737554029301,-151.0,0.00019391,2]
[349991395,1737554029325,-151.0,0.00019587,2]
[349991396,1737554029349,-300.0,0.00019784,2]
[349991397,1737554029462,-151.0,0.00019785,2]
[349991398,1737554029487,-360.901365,0.00019785,2]
[349991399,1737554029510,-360.901365,0.00019785,2]
[349991400,1737554029533,-156.533633,0.00019785,2]
[349991401,1737554029556,-152.675225,0.00019785,2]
[349991402,1737554029580,-915.397792,0.00019785,2]
[349991403,1737554029603,-915.397792,0.00019785,2]
[349991404,1737554029628,-360.901365,0.000199,2]
[349991405,1737554029651,-360.901365,0.000199,2]
[349991406,1737554036839,648.30883471,0.0002,2]
[349991407,1737554044768,5000.0,0.0002,2]
[349991408,1737554060767,5000.0,0.0002,2]
[349991409,1737554076592,503.43557341,0.0002,2]
[349991410,1737554080545,500.0,0.00019178,7]
[349991411,1737554080801,500.0,0.00019863,9]
[349991412,1737554201523,158.53864457,0.000189,2]
[349991415,1737554350126,500.0,0.0002,2]
[349991416,1737554358139,500.0,0.0002,2]
[349991417,1737554369138,500.0,0.00018903,2]
[349991418,1737554557855,500.0,0.00018903,2]
[349991420,1737554562777,163.250431,0.00013973,2]
[349991422,1737554585703,201.544403,0.00019626,2]
[349991423,1737554681320,277.357425,0.00019872,2]
[349991634,1737555037185,-485.4681486,0.00020019,2]
[349991635,1737555037195,-300.0,0.00020036,2]
[349991636,1737555037205,-12862.07205779,0.00020037,2]
[349991637,1737555037218,-12037.92794221,0.00020037,2]
[349991638,1737555037228,-3391.85679557,0.00020094,2]
[349991639,1737555037237,-160.99631642,0.0002037,5]
[349991640,1737555037246,-386.344,0.0002042,2]
[349991641,1737555037256,-151.0,0.00020748,4]
[349991642,1737555037266,-706.7832656,0.000208,2]
[349991643,1737555037276,-2922.0,0.00020897,2]
[349991644,1737555037285,-151.0,0.000209,2]
[349991645,1737555037295,-151.0,0.000209,2]
[349991646,1737555037304,-151.0,0.000209,2]
[349991647,1737555037314,-151.0,0.00020935,2]
[349991648,1737555037323,-152.999976,0.00020959,2]
[349991649,1737555037333,-151.0,0.00020959,2]
[349991650,1737555037342,-151.0,0.00020959,2]
[349991653,1737555037351,-151.0,0.00020959,2]
[349991656,1737555037361,-151.0,0.00020969,5]
[349991658,1737555037371,-600.0,0.00021,2]
[349991660,1737555037380,-166.70221922,0.00021109,2]
[349991662,1737555037389,-151.0,0.00021172,2]
[349991664,1737555037399,-151.0,0.00021172,2]
[349991666,1737555037409,-151.0,0.00021172,2]
[349991668,1737555037418,-152.145839,0.00021172,2]
[349991670,1737555037427,-151.0,0.00021172,2]
[349991672,1737555037437,-151.0,0.00021172,2]
[349991674,1737555037446,-378.945,0.00021172,2]
[349991685,1737555037550,-151.0,0.00021176,2]
[349991686,1737555037563,-151.0,0.00021176,2]
[349991687,1737555037573,-151.0,0.00021176,2]
[349991688,1737555037583,-151.0,0.00021176,2]
[349991689,1737555037592,-151.0,0.00021176,2]
[349991690,1737555037601,-500.0,0.00021176,2]
[349991691,1737555037611,-500.0,0.00021176,2]
[349991692,1737555037621,-500.0,0.00021176,2]
[349991693,1737555037630,-500.0,0.00021176,2]
[349991694,1737555037640,-500.0,0.00021176,2]
[349991695,1737555037650,-467.532371,0.00021176,2]
[349991696,1737555037661,-178.65273488,0.00021179,2]
[349991697,1737555037671,-151.0,0.0002119,5]
[349991698,1737555037681,-151.0,0.00021207,2]
[349991699,1737555037691,-151.0,0.00021207,2]
[349991700,1737555037700,-151.0,0.00021207,2]
[349991701,1737555037712,-151.0,0.00021207,2]
[349991702,1737555037722,-151.0,0.00021207,2]
[349991703,1737555037731,-151.0,0.00021207,2]
[349991704,1737555037741,-151.0,0.00021207,2]
[349991705,1737555037751,-154.129948,0.00021207,2]
[349991706,1737555037761,-151.0,0.00021207,2]
[349991708,1737555037771,-151.0,0.00021207,2]
[349991709,1737555037781,-212.533596,0.00021207,2]
[349991710,1737555037791,-151.0,0.00021207,2]
[349991712,1737555037800,-151.0,0.00021207,2]
[349991713,1737555037810,-177.754822,0.00021207,2]
[349991714,1737555037819,-151.0,0.00021207,2]
[349991716,1737555037830,-151.0,0.00021207,2]
[349991718,1737555037840,-151.0,0.00021207,2]
[349991720,1737555037849,-151.0,0.00021207,2]
[349991721,1737555037859,-207.361477,0.00021207,2]
[349991722,1737555037869,-207.361477,0.00021207,2]
[349991723,1737555037879,-138.85169763,0.00021207,2]
[349991724,1737555037891,-12.14830237,0.00021207,2]
[349991725,1737555037901,-151.0,0.00021207,2]
[349991726,1737555037910,-219.280286,0.00021207,2]
[349991727,1737555037919,-219.280286,0.00021207,2]
[349991728,1737555037929,-2061.0,0.00021207,2]
[349991729,1737555037939,-536.0,0.00021207,2]
[349991730,1737555037949,-2305.0,0.00021207,2]
[349991731,1737555037963,-163.250431,0.00021209,2]
[349991732,1737555037974,-151.0,0.00021279,2]
[349991733,1737555037986,-151.0,0.00021279,2]
[349991734,1737555037996,-151.0,0.00021279,2]
[349991735,1737555038006,-151.0,0.00021279,2]
[349991736,1737555038015,-151.0,0.00021279,2]
[349991737,1737555038026,-151.0,0.00021279,2]
[349991738,1737555038036,-151.0,0.00021279,2]
[349991740,1737555038045,-151.0,0.00021279,2]
[349991742,1737555038055,-156.483466,0.00021279,2]
[349991744,1737555038065,-156.483466,0.00021279,2]
[349991745,1737555038075,-329.853477,0.00021279,2]
[349991747,1737555038084,-329.853477,0.00021279,2]
[349991749,1737555038094,-151.547755,0.00021279,2]
[349991750,1737555038106,-151.0,0.00021279,2]
[349991752,1737555038115,-151.0,0.00021279,2]
[349991754,1737555038124,-151.0,0.00021279,2]
[349991756,1737555038134,-151.0,0.000214,2]
[349991758,1737555038144,-151.0,0.000214,2]
[349991760,1737555038153,-151.0,0.000214,2]
[349991762,1737555038163,-151.0,0.000214,2]
[349991764,1737555038172,-151.0,0.000214,2]
[349991766,1737555038182,-151.0,0.000214,2]
[349991768,1737555038192,-221.64937,0.000214,2]